[Event "*** SCC Grand Prix: Titled Tuesday Blitz"]
[Site "Chess.com"]
[Date "2020.09.29"]
[Round "6"]
[White "Shield12"]
[Black "LiemLe"]
[Result "1/2-1/2"]
[WhiteElo "2865"]
[BlackElo "2984"]
[TimeControl "180+1"]
[EndTime "11:07:53 PDT"]
[Termination "Game drawn - insufficient material"]

1. e4 {[%clk 0:03:00.9]} 1... c6 {[%clk 0:02:59.6]} 2. d4 {[%clk 0:03:01]} 2...
d5 {[%clk 0:03:00.5]} 3. exd5 {[%clk 0:03:01.9]} 3... cxd5 {[%clk 0:03:00.7]} 4.
Bd3 {[%clk 0:03:02.6]} 4... Nc6 {[%clk 0:03:01.3]} 5. c3 {[%clk 0:03:03.2]} 5...
Qc7 {[%clk 0:03:01.8]} 6. h3 {[%clk 0:03:02.6]} 6... Nf6 {[%clk 0:03:00.9]} 7.
Nf3 {[%clk 0:03:02.1]} 7... g6 {[%clk 0:03:00.7]} 8. Qc2 {[%clk 0:03:01]} 8...
Bg7 {[%clk 0:02:54]} 9. O-O {[%clk 0:03:01]} 9... O-O {[%clk 0:02:53.9]} 10. Re1
{[%clk 0:03:00.9]} 10... Re8 {[%clk 0:02:45.6]} 11. Nbd2 {[%clk 0:03:00.4]}
11... Nh5 {[%clk 0:02:38.7]} 12. Nb3 {[%clk 0:02:59.2]} 12... Nf4 {[%clk
0:02:38.3]} 13. Bf1 {[%clk 0:02:36.4]} 13... Bf5 {[%clk 0:02:36.8]} 14. Qd2
{[%clk 0:02:36.3]} 14... e5 {[%clk 0:01:57.5]} 15. dxe5 {[%clk 0:02:32.2]} 15...
Ne6 {[%clk 0:01:49.6]} 16. Nbd4 {[%clk 0:02:22.5]} 16... Be4 {[%clk 0:01:47.4]}
17. Bd3 {[%clk 0:02:02.5]} 17... Nexd4 {[%clk 0:01:35]} 18. Nxd4 {[%clk
0:01:35.8]} 18... Bxe5 {[%clk 0:01:22.1]} 19. Nxc6 {[%clk 0:01:31.2]} 19... bxc6
{[%clk 0:01:19.6]} 20. Bxe4 {[%clk 0:01:16.8]} 20... dxe4 {[%clk 0:01:20.5]} 21.
Qc2 {[%clk 0:01:17.2]} 21... f5 {[%clk 0:01:15.9]} 22. Bg5 {[%clk 0:01:17]}
22... Kg7 {[%clk 0:01:09.1]} 23. Rad1 {[%clk 0:01:16.1]} 23... h6 {[%clk
0:01:08.6]} 24. Be3 {[%clk 0:01:13.6]} 24... Rad8 {[%clk 0:01:00.5]} 25. Qa4
{[%clk 0:01:13.1]} 25... Bf6 {[%clk 0:00:20.8]} 26. Qxa7 {[%clk 0:01:09.1]}
26... Qxa7 {[%clk 0:00:19.3]} 27. Bxa7 {[%clk 0:01:10]} 27... Ra8 {[%clk
0:00:19.9]} 28. Rd7+ {[%clk 0:01:09.8]} 28... Re7 {[%clk 0:00:20.2]} 29. Rxe7+
{[%clk 0:01:06.4]} 29... Bxe7 {[%clk 0:00:21.1]} 30. Bd4+ {[%clk 0:01:07.1]}
30... Kf7 {[%clk 0:00:20.9]} 31. a3 {[%clk 0:01:05.9]} 31... c5 {[%clk
0:00:21.2]} 32. Be3 {[%clk 0:01:05.5]} 32... g5 {[%clk 0:00:18.5]} 33. g3 {[%clk
0:01:00.6]} 33... Ke6 {[%clk 0:00:18.3]} 34. f3 {[%clk 0:00:59.3]} 34... Bd6
{[%clk 0:00:17]} 35. fxe4 {[%clk 0:00:58.8]} 35... fxe4 {[%clk 0:00:16.1]} 36.
g4 {[%clk 0:00:57.4]} 36... c4 {[%clk 0:00:15.2]} 37. Rd1 {[%clk 0:00:52.9]}
37... Rb8 {[%clk 0:00:14.6]} 38. Rd4 {[%clk 0:00:47.6]} 38... Rxb2 {[%clk
0:00:14]} 39. Rxe4+ {[%clk 0:00:47.6]} 39... Kd5 {[%clk 0:00:13.3]} 40. Rd4+
{[%clk 0:00:47.9]} 40... Ke5 {[%clk 0:00:11.7]} 41. Rxc4 {[%clk 0:00:45.6]}
41... Bxa3 {[%clk 0:00:12.1]} 42. Ra4 {[%clk 0:00:33]} 42... Bd6 {[%clk
0:00:12]} 43. Bf2 {[%clk 0:00:31.4]} 43... Rc2 {[%clk 0:00:11.7]} 44. Bg3+
{[%clk 0:00:30.9]} 44... Ke6 {[%clk 0:00:10.1]} 45. Ra6 {[%clk 0:00:29.8]} 45...
Rc1+ {[%clk 0:00:10]} 46. Kf2 {[%clk 0:00:28.9]} 46... Rc2+ {[%clk 0:00:10.5]}
47. Ke1 {[%clk 0:00:27.8]} 47... Rxc3 {[%clk 0:00:10.9]} 48. Bxd6 {[%clk
0:00:19.7]} 48... Rxh3 {[%clk 0:00:11.8]} 49. Bf8+ {[%clk 0:00:16.3]} 49... Kf7
{[%clk 0:00:12]} 50. Bxh6 {[%clk 0:00:15.2]} 50... Rh4 {[%clk 0:00:11.3]} 51.
Bxg5 {[%clk 0:00:14.3]} 51... Rxg4 {[%clk 0:00:11.6]} 52. Be3 {[%clk 0:00:14.7]}
52... Re4 {[%clk 0:00:11.7]} 53. Ke2 {[%clk 0:00:14.7]} 53... Re6 {[%clk
0:00:12.6]} 54. Ra5 {[%clk 0:00:14.6]} 54... Kf6 {[%clk 0:00:12.4]} 55. Kf3
{[%clk 0:00:14.9]} 55... Rc6 {[%clk 0:00:11.9]} 56. Bd4+ {[%clk 0:00:14.2]}
56... Ke6 {[%clk 0:00:12.3]} 57. Ke4 {[%clk 0:00:14.6]} 57... Kd6 {[%clk
0:00:12.1]} 58. Rh5 {[%clk 0:00:14.3]} 58... Rc1 {[%clk 0:00:11.3]} 59. Rh6+
{[%clk 0:00:14.4]} 59... Kd7 {[%clk 0:00:11.7]} 60. Kd5 {[%clk 0:00:13.9]} 60...
Rd1 {[%clk 0:00:12.1]} 61. Rh7+ {[%clk 0:00:13.8]} 61... Kd8 {[%clk 0:00:12.7]}
62. Kc5 {[%clk 0:00:13.8]} 62... Ke8 {[%clk 0:00:13]} 63. Be5 {[%clk 0:00:14.2]}
63... Rd7 {[%clk 0:00:13.6]} 64. Rh6 {[%clk 0:00:14.1]} 64... Rd1 {[%clk
0:00:12.4]} 65. Bd6 {[%clk 0:00:12.7]} 65... Kf7 {[%clk 0:00:12.6]} 66. Be5
{[%clk 0:00:12.4]} 66... Rd2 {[%clk 0:00:11.6]} 67. Bd4 {[%clk 0:00:12.1]} 67...
Ke7 {[%clk 0:00:11.4]} 68. Kd5 {[%clk 0:00:10.8]} 68... Kd7 {[%clk 0:00:11.4]}
69. Rh7+ {[%clk 0:00:10.5]} 69... Kd8 {[%clk 0:00:11.8]} 70. Ke5 {[%clk
0:00:10.7]} 70... Kc8 {[%clk 0:00:12.3]} 71. Rg7 {[%clk 0:00:10.3]} 71... Rd1
{[%clk 0:00:11.9]} 72. Rg2 {[%clk 0:00:10.1]} 72... Kd7 {[%clk 0:00:11.2]} 73.
Rg6 {[%clk 0:00:10]} 73... Kc7 {[%clk 0:00:09.4]} 74. Kd5 {[%clk 0:00:09.7]}
74... Kd7 {[%clk 0:00:09.2]} 75. Rg7+ {[%clk 0:00:09.7]} 75... Kd8 {[%clk
0:00:09.7]} 76. Ke5 {[%clk 0:00:10.1]} 76... Kc8 {[%clk 0:00:10.3]} 77. Bc5
{[%clk 0:00:10.3]} 77... Rd7 {[%clk 0:00:11.2]} 78. Be7 {[%clk 0:00:10.5]} 78...
Kc7 {[%clk 0:00:10.5]} 79. Ke6 {[%clk 0:00:10.6]} 79... Kc6 {[%clk 0:00:10.2]}
80. Rg2 {[%clk 0:00:09.2]} 80... Rd1 {[%clk 0:00:10.5]} 81. Rc2+ {[%clk
0:00:09.5]} 81... Kb5 {[%clk 0:00:10.8]} 82. Bf6 {[%clk 0:00:09.5]} 82... Rh1
{[%clk 0:00:09]} 83. Kd5 {[%clk 0:00:08.9]} 83... Rh5+ {[%clk 0:00:09.3]} 84.
Be5 {[%clk 0:00:09.2]} 84... Rg5 {[%clk 0:00:09.6]} 85. Rb2+ {[%clk 0:00:09.4]}
85... Ka5 {[%clk 0:00:09.6]} 86. Rb1 {[%clk 0:00:09.5]} 86... Rh5 {[%clk
0:00:09.3]} 87. Kd4 {[%clk 0:00:09.7]} 87... Ka6 {[%clk 0:00:08.9]} 88. Rb8
{[%clk 0:00:09.6]} 88... Rg5 {[%clk 0:00:07.9]} 89. Bd6 {[%clk 0:00:09.4]} 89...
Rb5 {[%clk 0:00:08.8]} 90. Ra8+ {[%clk 0:00:09.4]} 90... Kb7 {[%clk 0:00:09]}
91. Rh8 {[%clk 0:00:10.1]} 91... Kc6 {[%clk 0:00:09.8]} 92. Rh6 {[%clk
0:00:08.6]} 92... Rd5+ {[%clk 0:00:09.9]} 93. Ke4 {[%clk 0:00:08.8]} 93... Rxd6
{[%clk 0:00:10.8]} 94. Rxd6+ {[%clk 0:00:09.5]} 94... Kxd6 {[%clk 0:00:11.7]}
1/2-1/2

[Event "*** SCC Grand Prix: Titled Tuesday Blitz"]
[Site "Chess.com"]
[Date "2020.09.29"]
[Round "6"]
[White "bazar-wokzal"]
[Black "Maghalashvili"]
[Result "1/2-1/2"]
[WhiteElo "2480"]
[BlackElo "2706"]
[TimeControl "180+1"]
[EndTime "11:07:57 PDT"]
[Termination "Game drawn by stalemate"]

1. e4 {[%clk 0:03:00.9]} 1... c5 {[%clk 0:02:59.6]} 2. c3 {[%clk 0:03:00.8]}
2... d6 {[%clk 0:03:00.3]} 3. d4 {[%clk 0:03:00.7]} 3... Nf6 {[%clk 0:02:58.5]}
4. Bd3 {[%clk 0:03:00.2]} 4... g6 {[%clk 0:02:58.5]} 5. dxc5 {[%clk 0:02:59.9]}
5... dxc5 {[%clk 0:02:58.3]} 6. e5 {[%clk 0:02:59.8]} 6... Nfd7 {[%clk
0:02:54.2]} 7. e6 {[%clk 0:02:59.3]} 7... fxe6 {[%clk 0:02:54.2]} 8. Nf3 {[%clk
0:02:53.7]} 8... Nc6 {[%clk 0:02:54.3]} 9. h4 {[%clk 0:02:48.1]} 9... Nde5
{[%clk 0:02:51.5]} 10. Nxe5 {[%clk 0:02:47.2]} 10... Nxe5 {[%clk 0:02:52.4]} 11.
Bb5+ {[%clk 0:02:47.2]} 11... Bd7 {[%clk 0:02:52.3]} 12. Qe2 {[%clk 0:02:45.8]}
12... Bxb5 {[%clk 0:02:49.9]} 13. Qxb5+ {[%clk 0:02:45.3]} 13... Qd7 {[%clk
0:02:50.2]} 14. Qxd7+ {[%clk 0:02:42.9]} 14... Kxd7 {[%clk 0:02:47.7]} 15. O-O
{[%clk 0:02:39.7]} 15... Bg7 {[%clk 0:02:45.1]} 16. Nd2 {[%clk 0:02:37.1]} 16...
Kc6 {[%clk 0:02:40.8]} 17. Ne4 {[%clk 0:02:35.3]} 17... Bf6 {[%clk 0:02:38.7]}
18. Be3 {[%clk 0:02:23.3]} 18... b6 {[%clk 0:02:34.6]} 19. Rfd1 {[%clk
0:02:16.5]} 19... Bxh4 {[%clk 0:02:26.2]} 20. Bg5 {[%clk 0:01:55]} 20... Bxg5
{[%clk 0:02:06.8]} 21. Nxg5 {[%clk 0:01:54.8]} 21... Rhf8 {[%clk 0:01:55.1]} 22.
Nxe6 {[%clk 0:01:39.2]} 22... Rf5 {[%clk 0:01:48.6]} 23. a4 {[%clk 0:01:23.1]}
23... h6 {[%clk 0:01:34.6]} 24. b4 {[%clk 0:01:08.5]} 24... Rf6 {[%clk 0:01:24]}
25. b5+ {[%clk 0:00:26.6]} 25... Kb7 {[%clk 0:01:22.4]} 26. f4 {[%clk 0:00:27]}
26... Rxe6 {[%clk 0:01:19]} 27. fxe5 {[%clk 0:00:27.5]} 27... Kc7 {[%clk
0:01:15.5]} 28. Rd5 {[%clk 0:00:23.5]} 28... Rd8 {[%clk 0:01:13]} 29. Rad1
{[%clk 0:00:22.4]} 29... Rxd5 {[%clk 0:01:06]} 30. Rxd5 {[%clk 0:00:22.4]} 30...
h5 {[%clk 0:01:03.6]} 31. Kf2 {[%clk 0:00:20]} 31... g5 {[%clk 0:01:03]} 32. Ke3
{[%clk 0:00:20.4]} 32... Rh6 {[%clk 0:00:51.3]} 33. Ke4 {[%clk 0:00:20.3]} 33...
h4 {[%clk 0:00:46.3]} 34. Rd3 {[%clk 0:00:16.7]} 34... g4 {[%clk 0:00:39.9]} 35.
Kf5 {[%clk 0:00:07.9]} 35... h3 {[%clk 0:00:37.5]} 36. gxh3 {[%clk 0:00:08.3]}
36... gxh3 {[%clk 0:00:38.4]} 37. Rd1 {[%clk 0:00:06.7]} 37... h2 {[%clk
0:00:38.3]} 38. Rh1 {[%clk 0:00:06.9]} 38... Kd7 {[%clk 0:00:37.2]} 39. c4
{[%clk 0:00:06.9]} 39... Rh5+ {[%clk 0:00:36.6]} 40. Kg4 {[%clk 0:00:07.3]}
40... Rh8 {[%clk 0:00:36.6]} 41. Kf5 {[%clk 0:00:05.5]} 41... Rh4 {[%clk
0:00:36.3]} 42. Kg5 {[%clk 0:00:04.5]} 42... Rxc4 {[%clk 0:00:35.1]} 43. Rxh2
{[%clk 0:00:05]} 43... Rxa4 {[%clk 0:00:34.7]} 44. Kf5 {[%clk 0:00:04.7]} 44...
Ra1 {[%clk 0:00:20.3]} 45. Rd2+ {[%clk 0:00:03.4]} 45... Ke8 {[%clk 0:00:20.4]}
46. Ke6 {[%clk 0:00:02.2]} 46... Rh1 {[%clk 0:00:17.2]} 47. Ra2 {[%clk
0:00:02.2]} 47... Rh6+ {[%clk 0:00:16.4]} 48. Kd5 {[%clk 0:00:02.6]} 48... Kf7
{[%clk 0:00:09.6]} 49. Rxa7 {[%clk 0:00:02.6]} 49... Rg6 {[%clk 0:00:08]} 50.
Rb7 {[%clk 0:00:03]} 50... Rh6 {[%clk 0:00:08.1]} 51. Rc7 {[%clk 0:00:03.6]}
51... Rh1 {[%clk 0:00:06.3]} 52. Rb7 {[%clk 0:00:03.7]} 52... Rh6 {[%clk
0:00:04.6]} 53. Rc7 {[%clk 0:00:03.4]} 53... Rh1 {[%clk 0:00:04.7]} 54. Rb7
{[%clk 0:00:03.8]} 54... Rd1+ {[%clk 0:00:04.7]} 55. Ke4 {[%clk 0:00:03.6]}
55... c4 {[%clk 0:00:04.1]} 56. Rxb6 {[%clk 0:00:03.5]} 56... c3 {[%clk
0:00:03.2]} 57. Rc6 {[%clk 0:00:04.4]} 57... Rb1 {[%clk 0:00:02.7]} 58. b6
{[%clk 0:00:05]} 58... c2 {[%clk 0:00:02.5]} 59. Rxc2 {[%clk 0:00:05]} 59...
Rxb6 {[%clk 0:00:03]} 60. Rc4 {[%clk 0:00:05.4]} 60... Rh6 {[%clk 0:00:03]} 61.
Rc5 {[%clk 0:00:05.6]} 61... Ra6 {[%clk 0:00:03.4]} 62. Rb5 {[%clk 0:00:05.6]}
62... Ke6 {[%clk 0:00:03.7]} 63. Rb4 {[%clk 0:00:05.4]} 63... Rc6 {[%clk
0:00:04.1]} 64. Ra4 {[%clk 0:00:05.7]} 64... Rb6 {[%clk 0:00:04.3]} 65. Rc4
{[%clk 0:00:05.6]} 65... Rb5 {[%clk 0:00:04.7]} 66. Rc6+ {[%clk 0:00:05.6]}
66... Kd7 {[%clk 0:00:05.3]} 67. Ra6 {[%clk 0:00:06]} 67... e6 {[%clk
0:00:05.5]} 68. Ra7+ {[%clk 0:00:05.8]} 68... Kc6 {[%clk 0:00:05.8]} 69. Ra6+
{[%clk 0:00:06.1]} 69... Kd7 {[%clk 0:00:05.8]} 70. Ra7+ {[%clk 0:00:06.4]}
70... Kc6 {[%clk 0:00:04]} 71. Ra6+ {[%clk 0:00:06.6]} 71... Rb6 {[%clk
0:00:03.8]} 72. Rxb6+ {[%clk 0:00:06.4]} 72... Kxb6 {[%clk 0:00:04.7]} 73. Kd4
{[%clk 0:00:06.5]} 73... Kb5 {[%clk 0:00:04.9]} 74. Ke4 {[%clk 0:00:05.6]} 74...
Kc4 {[%clk 0:00:05.1]} 75. Kf4 {[%clk 0:00:05.5]} 75... Kd4 {[%clk 0:00:05.4]}
76. Kf3 {[%clk 0:00:06]} 76... Kd5 {[%clk 0:00:05.7]} 77. Kf4 {[%clk 0:00:05.7]}
77... Kd4 {[%clk 0:00:06.1]} 78. Kf3 {[%clk 0:00:06.1]} 78... Kxe5 {[%clk
0:00:07]} 79. Ke3 {[%clk 0:00:06.3]} 79... Kd5 {[%clk 0:00:07.9]} 80. Kd3 {[%clk
0:00:06.6]} 80... e5 {[%clk 0:00:08.3]} 81. Ke3 {[%clk 0:00:06.9]} 81... e4
{[%clk 0:00:09.2]} 82. Ke2 {[%clk 0:00:07.2]} 82... Ke5 {[%clk 0:00:10.1]} 83.
Ke3 {[%clk 0:00:07.5]} 83... Kf5 {[%clk 0:00:10.5]} 84. Ke2 {[%clk 0:00:07.8]}
84... Kf4 {[%clk 0:00:11.4]} 85. Kf2 {[%clk 0:00:08]} 85... e3+ {[%clk
0:00:12.3]} 86. Ke2 {[%clk 0:00:08.4]} 86... Ke4 {[%clk 0:00:13.2]} 87. Ke1
{[%clk 0:00:08.7]} 87... Kd3 {[%clk 0:00:14.1]} 88. Kd1 {[%clk 0:00:09.1]} 88...
Kc3 {[%clk 0:00:13.5]} 89. Ke2 {[%clk 0:00:09.1]} 89... Kd4 {[%clk 0:00:14.4]}
90. Ke1 {[%clk 0:00:09.8]} 90... Kd3 {[%clk 0:00:15.3]} 91. Kd1 {[%clk
0:00:10.1]} 91... e2+ {[%clk 0:00:15.2]} 92. Ke1 {[%clk 0:00:10.3]} 92... Ke3
{[%clk 0:00:16.1]} 1/2-1/2

[Event "*** SCC Grand Prix: Titled Tuesday Blitz"]
[Site "Chess.com"]
[Date "2020.09.29"]
[Round "6"]
[White "szefru"]
[Black "ajkom197"]
[Result "0-1"]
[WhiteElo "2167"]
[BlackElo "2457"]
[TimeControl "180+1"]
[EndTime "11:08:21 PDT"]
[Termination "ajkom197 won by checkmate"]

1. e4 {[%clk 0:02:47.4]} 1... c6 {[%clk 0:02:59.3]} 2. d4 {[%clk 0:02:47.2]}
2... d5 {[%clk 0:02:59.6]} 3. Nc3 {[%clk 0:02:46]} 3... dxe4 {[%clk 0:02:59.5]}
4. Nxe4 {[%clk 0:02:46.9]} 4... Nf6 {[%clk 0:03:00]} 5. Nxf6+ {[%clk 0:02:45.3]}
5... exf6 {[%clk 0:03:00.9]} 6. Nf3 {[%clk 0:02:42.3]} 6... Bd6 {[%clk
0:03:00.2]} 7. Be3 {[%clk 0:02:41.9]} 7... O-O {[%clk 0:02:59.9]} 8. Qd2 {[%clk
0:02:42.4]} 8... Be6 {[%clk 0:02:56.4]} 9. Bd3 {[%clk 0:02:35.7]} 9... Nd7
{[%clk 0:02:53.7]} 10. O-O {[%clk 0:02:35.8]} 10... Qc7 {[%clk 0:02:51.7]} 11.
h3 {[%clk 0:02:34.4]} 11... Rfe8 {[%clk 0:02:50.4]} 12. Nh4 {[%clk 0:02:30.6]}
12... g6 {[%clk 0:02:46.8]} 13. f4 {[%clk 0:02:25.6]} 13... f5 {[%clk
0:02:44.6]} 14. c4 {[%clk 0:02:17.5]} 14... Nf6 {[%clk 0:02:44.1]} 15. g3 {[%clk
0:01:56.1]} 15... Ne4 {[%clk 0:02:36.5]} 16. Qg2 {[%clk 0:01:55.3]} 16... Bf8
{[%clk 0:02:24.3]} 17. Rfe1 {[%clk 0:01:48.2]} 17... Rad8 {[%clk 0:02:19.9]} 18.
Nf3 {[%clk 0:01:43.7]} 18... Bg7 {[%clk 0:02:16.6]} 19. Ne5 {[%clk 0:01:42]}
19... c5 {[%clk 0:01:49.5]} 20. d5 {[%clk 0:01:32.7]} 20... f6 {[%clk
0:01:31.9]} 21. Bxe4 {[%clk 0:01:09.6]} 21... fxe5 {[%clk 0:01:15.3]} 22. dxe6
{[%clk 0:01:09.6]} 22... fxe4 {[%clk 0:01:14.1]} 23. Qxe4 {[%clk 0:01:09.4]}
23... Rxe6 {[%clk 0:01:11.7]} 24. Rad1 {[%clk 0:01:02.1]} 24... Rde8 {[%clk
0:01:10]} 25. f5 {[%clk 0:01:00.3]} 25... gxf5 {[%clk 0:01:06.1]} 26. Qxf5
{[%clk 0:01:01.2]} 26... Rg6 {[%clk 0:01:02]} 27. Kh2 {[%clk 0:00:54]} 27... e4
{[%clk 0:00:55.9]} 28. Bf4 {[%clk 0:00:50.1]} 28... Qf7 {[%clk 0:00:54.6]} 29.
Qxf7+ {[%clk 0:00:48.2]} 29... Kxf7 {[%clk 0:00:55.5]} 30. b3 {[%clk 0:00:47.3]}
30... Rge6 {[%clk 0:00:44.3]} 31. Rd7+ {[%clk 0:00:41]} 31... R8e7 {[%clk
0:00:43.7]} 32. Rd5 {[%clk 0:00:40.9]} 32... b6 {[%clk 0:00:42.5]} 33. Bg5
{[%clk 0:00:37.9]} 33... Bf6 {[%clk 0:00:38.5]} 34. Bf4 {[%clk 0:00:26.9]} 34...
Kg6 {[%clk 0:00:33.3]} 35. Re2 {[%clk 0:00:27.1]} 35... Bd4 {[%clk 0:00:31.2]}
36. h4 {[%clk 0:00:26.4]} 36... h6 {[%clk 0:00:30.6]} 37. h5+ {[%clk 0:00:26.4]}
37... Kh7 {[%clk 0:00:29.8]} 38. Kh3 {[%clk 0:00:23.3]} 38... e3 {[%clk
0:00:26.5]} 39. Rf5 {[%clk 0:00:20.7]} 39... Kg7 {[%clk 0:00:22.5]} 40. Rd5
{[%clk 0:00:19.7]} 40... Kh7 {[%clk 0:00:20.3]} 41. Rf5 {[%clk 0:00:16.3]} 41...
Kg7 {[%clk 0:00:16.7]} 42. Rd5 {[%clk 0:00:16.9]} 42... Bc3 {[%clk 0:00:04.8]}
43. Rd6 {[%clk 0:00:16.2]} 43... Rxd6 {[%clk 0:00:03.5]} 44. Bxd6 {[%clk
0:00:17.1]} 44... Re6 {[%clk 0:00:04.1]} 45. Bf4 {[%clk 0:00:17.3]} 45... Bd2
{[%clk 0:00:04.6]} 46. Kg2 {[%clk 0:00:17.8]} 46... Kf7 {[%clk 0:00:04.1]} 47.
Kf3 {[%clk 0:00:18.3]} 47... Kg7 {[%clk 0:00:03.9]} 48. Bxe3 {[%clk 0:00:15.8]}
48... Bxe3 {[%clk 0:00:04.1]} 49. Rxe3 {[%clk 0:00:16.7]} 49... Rf6+ {[%clk
0:00:04.7]} 50. Kg2 {[%clk 0:00:16.9]} 50... Kf7 {[%clk 0:00:03.6]} 51. g4
{[%clk 0:00:16.8]} 51... Rd6 {[%clk 0:00:03]} 52. Kg3 {[%clk 0:00:17.3]} 52...
Rd4 {[%clk 0:00:02.1]} 53. Rf3+ {[%clk 0:00:17.2]} 53... Kg7 {[%clk 0:00:02]}
54. a4 {[%clk 0:00:16.5]} 54... a6 {[%clk 0:00:01.7]} 55. Re3 {[%clk 0:00:16.8]}
55... Kf7 {[%clk 0:00:01.7]} 56. Kh4 {[%clk 0:00:16.3]} 56... b5 {[%clk
0:00:01.8]} 57. axb5 {[%clk 0:00:16.1]} 57... axb5 {[%clk 0:00:02.7]} 58. cxb5
{[%clk 0:00:16.3]} 58... Rb4 {[%clk 0:00:03.6]} 59. Rf3+ {[%clk 0:00:16.3]}
59... Kg7 {[%clk 0:00:03.3]} 60. Rc3 {[%clk 0:00:15.6]} 60... Rxb5 {[%clk
0:00:03.5]} 61. g5 {[%clk 0:00:14.9]} 61... hxg5+ {[%clk 0:00:03.1]} 62. Kxg5
{[%clk 0:00:15.2]} 62... c4+ {[%clk 0:00:03.3]} 63. Kg4 {[%clk 0:00:15.6]} 63...
cxb3 {[%clk 0:00:03.8]} 64. Rc7+ {[%clk 0:00:16.1]} 64... Kf6 {[%clk 0:00:03.6]}
65. Rc6+ {[%clk 0:00:16.7]} 65... Ke5 {[%clk 0:00:03.7]} 66. Rc1 {[%clk
0:00:16.3]} 66... Kd4 {[%clk 0:00:03.9]} 67. h6 {[%clk 0:00:16.1]} 67... b2
{[%clk 0:00:03.3]} 68. Rb1 {[%clk 0:00:16.5]} 68... Kc3 {[%clk 0:00:03.8]} 69.
h7 {[%clk 0:00:16.9]} 69... Rb8 {[%clk 0:00:03.9]} 70. Rh1 {[%clk 0:00:16.9]}
70... Rh8 {[%clk 0:00:03.5]} 71. Kg5 {[%clk 0:00:16.3]} 71... Rxh7 {[%clk
0:00:04]} 72. Rxh7 {[%clk 0:00:16.2]} 72... b1=Q {[%clk 0:00:04.3]} 73. Rc7+
{[%clk 0:00:17.1]} 73... Kd4 {[%clk 0:00:04.6]} 74. Rd7+ {[%clk 0:00:17.6]}
74... Ke5 {[%clk 0:00:05]} 75. Re7+ {[%clk 0:00:18]} 75... Kd6 {[%clk
0:00:05.2]} 76. Rf7 {[%clk 0:00:18.6]} 76... Ke6 {[%clk 0:00:05.1]} 77. Rf6+
{[%clk 0:00:18.9]} 77... Ke7 {[%clk 0:00:05.5]} 78. Rf5 {[%clk 0:00:19.3]} 78...
Qe4 {[%clk 0:00:05.4]} 79. Rf4 {[%clk 0:00:19.5]} 79... Qe3 {[%clk 0:00:05.2]}
80. Kg4 {[%clk 0:00:19.8]} 80... Ke6 {[%clk 0:00:05.6]} 81. Rf3 {[%clk
0:00:20.3]} 81... Qe2 {[%clk 0:00:06.1]} 82. Kf4 {[%clk 0:00:19.4]} 82... Kd5
{[%clk 0:00:06.2]} 83. Kg3 {[%clk 0:00:19.7]} 83... Ke4 {[%clk 0:00:04.8]} 84.
Rf4+ {[%clk 0:00:20.2]} 84... Ke3 {[%clk 0:00:04.8]} 85. Rg4 {[%clk 0:00:20.3]}
85... Qf2+ {[%clk 0:00:04.8]} 86. Kh3 {[%clk 0:00:20.3]} 86... Qf1+ {[%clk
0:00:04.7]} 87. Kh4 {[%clk 0:00:20.4]} 87... Qh1+ {[%clk 0:00:04.4]} 88. Kg5
{[%clk 0:00:20.5]} 88... Qh3 {[%clk 0:00:05.1]} 89. Rh4 {[%clk 0:00:20.4]} 89...
Qe6 {[%clk 0:00:04.4]} 90. Rg4 {[%clk 0:00:18.7]} 90... Qf7 {[%clk 0:00:04.3]}
91. Rg3+ {[%clk 0:00:18.3]} 91... Ke4 {[%clk 0:00:04.6]} 92. Rg4+ {[%clk
0:00:18.8]} 92... Ke5 {[%clk 0:00:05.1]} 93. Kh4 {[%clk 0:00:19.2]} 93... Qf2+
{[%clk 0:00:02.4]} 94. Kh3 {[%clk 0:00:19]} 94... Kf5 {[%clk 0:00:01.7]} 95. Rg2
{[%clk 0:00:17.8]} 95... Qf3+ {[%clk 0:00:01.8]} 96. Rg3 {[%clk 0:00:18.3]}
96... Qh1# {[%clk 0:00:02.1]} 0-1

[Event "*** SCC Grand Prix: Titled Tuesday Blitz"]
[Site "Chess.com"]
[Date "2020.09.29"]
[Round "7"]
[White "tlomigtlis"]
[Black "A-Fier"]
[Result "0-1"]
[WhiteElo "2525"]
[BlackElo "2834"]
[TimeControl "180+1"]
[EndTime "11:10:43 PDT"]
[Termination "A-Fier won by resignation"]

1. d4 {[%clk 0:03:00.9]} 1... Nf6 {[%clk 0:02:56.6]} 2. c4 {[%clk 0:03:00.9]}
2... e5 {[%clk 0:02:56.3]} 3. dxe5 {[%clk 0:03:00.7]} 3... Ne4 {[%clk
0:02:56.7]} 4. a3 {[%clk 0:03:00.6]} 4... d6 {[%clk 0:02:50.3]} 5. Nf3 {[%clk
0:02:59.3]} 5... Nc6 {[%clk 0:02:49.8]} 6. Bf4 {[%clk 0:02:54.7]} 6... Bf5
{[%clk 0:02:41.9]} 7. e3 {[%clk 0:02:50.6]} 7... dxe5 {[%clk 0:02:40.4]} 8.
Qxd8+ {[%clk 0:02:48.1]} 8... Rxd8 {[%clk 0:02:41.3]} 9. Nxe5 {[%clk 0:02:48.5]}
9... Na5 {[%clk 0:02:39.8]} 10. f3 {[%clk 0:02:44.3]} 10... Nc5 {[%clk
0:02:24.8]} 11. Nd2 {[%clk 0:02:41.4]} 11... Rxd2 {[%clk 0:02:23.1]} 12. Kxd2
{[%clk 0:02:41.1]} 12... Nab3+ {[%clk 0:02:23.4]} 13. Kc3 {[%clk 0:02:39]} 13...
Nxa1 {[%clk 0:02:23.4]} 14. Be2 {[%clk 0:02:27.9]} 14... Na4+ {[%clk 0:02:21.2]}
0-1

[Event "*** SCC Grand Prix: Titled Tuesday Blitz"]
[Site "Chess.com"]
[Date "2020.09.29"]
[Round "7"]
[White "krasavetc"]
[Black "GHANDEEVAM2003"]
[Result "0-1"]
[WhiteElo "2339"]
[BlackElo "2990"]
[TimeControl "180+1"]
[EndTime "11:10:49 PDT"]
[Termination "GHANDEEVAM2003 won by resignation"]

1. c4 {[%clk 0:02:59.8]} 1... b6 {[%clk 0:02:57.4]} 2. Nc3 {[%clk 0:02:59.8]}
2... Bb7 {[%clk 0:02:57.9]} 3. d4 {[%clk 0:03:00.7]} 3... g6 {[%clk 0:02:58]} 4.
Nf3 {[%clk 0:03:01.2]} 4... Bg7 {[%clk 0:02:58]} 5. e4 {[%clk 0:02:59.9]} 5...
e6 {[%clk 0:02:58.2]} 6. Be2 {[%clk 0:02:56.6]} 6... Ne7 {[%clk 0:02:58.5]} 7.
O-O {[%clk 0:02:55.6]} 7... d6 {[%clk 0:02:58.9]} 8. Be3 {[%clk 0:02:54.4]} 8...
Nd7 {[%clk 0:02:59.3]} 9. Qc1 {[%clk 0:02:51.9]} 9... h6 {[%clk 0:02:59.5]} 10.
Rd1 {[%clk 0:02:47.5]} 10... a6 {[%clk 0:02:59.2]} 11. Bf1 {[%clk 0:02:45.4]}
11... Kf8 {[%clk 0:02:59]} 12. e5 {[%clk 0:02:32.9]} 12... Bxf3 {[%clk
0:02:55.6]} 13. gxf3 {[%clk 0:02:32]} 13... Nf5 {[%clk 0:02:56.2]} 14. Bf4
{[%clk 0:02:31.2]} 14... Nxd4 {[%clk 0:02:40]} 15. Rxd4 {[%clk 0:02:22.9]} 15...
dxe5 {[%clk 0:02:39.6]} 16. Rd3 {[%clk 0:02:22.6]} 16... exf4 {[%clk 0:02:39]}
17. Qd2 {[%clk 0:02:21]} 17... Qg5+ {[%clk 0:02:38.4]} 18. Kh1 {[%clk
0:02:20.4]} 18... Ne5 {[%clk 0:02:38.1]} 19. Rd4 {[%clk 0:02:17.1]} 19... Nxf3
{[%clk 0:02:37.1]} 0-1